[Event "Susha Chess Blitz Women 2022"]
[Site "Shusha"]
[Date "2022.09.24"]
[Round "4"]
[White "Mammadzada, Gunay"]
[Black "Balajayeva, Khanim"]
[Result "0-1"]
[ECO "C95"]
[WhiteElo "2473"]
[BlackElo "2379"]
[Annotator "TA"]
[PlyCount "90"]
[EventDate "2022.09.24"]
[EventType "tourn"]
[EventCountry "AZE"]
[SourceTitle "playchess.com"]
[Source "ChessBase"]
[SourceQuality "1"]
[TimeControl "180+2"]

{[%evp 21,90,14,25,20,28,-31,-41,-27,5,-10,-20,-32,-21,-108,-74,-73,154,0,82,-285,-279,-390,-388,-384,-378,-391,-377,-398,-415,-415,-414,-408,-399,-504,-497,-623,-623,-619,-609,-579,-496,-864,-575,-847,-517,-514,-507,-713,-460,-452,-437,-441,-429,-417,-403,-362,0,-417,-380,-412,-355,-343,0,-373,-265,-407,-404,-880,-852,-1790,-1504]} 1. e4 {[%emt 0:00:01]} e5 {[%emt 0:00:00]} 2. Nf3 {[%emt 0:00:01]} Nc6 {[%emt 0:00:01]} 3. Bb5 {[%cal Bf1b5,Bb5a4,Ba4b3][%mdl 32]} a6 4. Ba4 {[%emt 0:00:02]} Nf6 {[%emt 0:00:01]} 5. O-O {[%emt 0:00:01]} Be7 {[%emt 0:00:01]} 6. Re1 {[%emt 0:00:01]} b5 {[%emt 0:00:01]} 7. Bb3 {[%emt 0:00:01]} d6 {[%emt 0:00:00]} 8. c3 {[%emt 0:00:02]} O-O {[%emt 0:00:02]} 9. h3 {[%emt 0:00:00]} Nb8 {[%emt 0:00:25][%cal Bc6b8,Bb8d7,Bd7c5][%mdl 32]} 10. d4 {[%emt 0:00:05]} Nbd7 {[%emt 0:00:01]} 11. c4 {[%emt 0:00:21]} c6 {[%emt 0:00:15]} 12. Qc2 {[%emt 0:00:06] C95: Closed Ruy Lopez: Breyer Variation with 10 d4.} Bb7 {[%emt 0:00:12]} 13. Nbd2 {[%emt 0:00:48] [#]} ({White should play} 13. Nc3 $11) 13... exd4 $146 {[%emt 0:00:37]} ({Predecessor:} 13... Rc8 14. dxe5 Nxe5 15. Nxe5 dxe5 16. Nf1 Nd7 17. Ng3 g6 18. Bh6 Re8 19. Rad1 Rc7 {0-1 (64) Milman,L (2462)-Getz,A (2313) New York 2011}) 14. Nxd4 {[%emt 0:00:05] Black is slightly better.} Nc5 {[%emt 0:00:00]} 15. N2f3 {[%emt 0:00:34]} Re8 {[%emt 0:00:02]} 16. Nf5 {[%emt 0:00:15]} Bf8 {[%emt 0:00:04][%cal Rf6e4]} 17. Bg5 {[%emt 0:00:18]} (17. Nxd6 $11 Bxd6 18. e5) 17... h6 {[%emt 0:00:12]} 18. Bh4 {[%emt 0:00:20]} g6 $2 {[%emt 0:00:01]} (18... Rxe4 $17 19. Rxe4 Ncxe4) 19. cxb5 $2 {[%emt 0:00:20]} (19. e5 $16 dxe5 20. Rad1) 19... gxf5 {[%emt 0:00:17]} (19... Nxb3 $11 {remains equal.} 20. Qxb3 (20. axb3 cxb5 21. Qc3 Re6 $15) 20... cxb5) 20. Nd4 $2 {[%emt 0:00:13][%mdl 8192]} (20. e5 $16 {stays on course.}) 20... cxb5 $19 {[%emt 0:00:08][%cal Rf5e4]} ({Don't blunder} 20... axb5 $2 21. Nxf5 Bc8 22. Nd4 Nxb3 23. Qxb3 $19) 21. Nxf5 {[%emt 0:00:05]} Bxe4 22. Qc3 Bxf5 {[%emt 0:00:13]} ({Weaker is} 22... Re5 23. Qg3+ Kh8 24. Bxf7 $17) 23. Bxf6 {[%emt 0:00:01] [#] Threatening mate with Qg3+.} Qd7 {[%emt 0:00:12]} 24. Qg3+ {[%emt 0:00:04]} Kh7 {[%emt 0:00:01]} 25. Bd5 {[%emt 0:00:02]} Rxe1+ {[%emt 0:00:07]} ({Not} 25... Ne4 26. Qf3 Nxf6 27. Bxa8 $17) 26. Rxe1 {[%emt 0:00:01] Hoping for Re7.} Re8 {[%emt 0:00:00] Against Re7} 27. Rc1 {[%emt 0:00:06]} Ne4 {[%emt 0:00:13]} 28. Qh4 {[%emt 0:00:02]} Nxf6 {[%emt 0:00:12]} 29. Qxf6 {[%emt 0:00:01]} Bg7 {[%emt 0:00:01]} 30. Qh4 {[%emt 0:00:02]} Qe7 {[%emt 0:00:07]} 31. Qf4 {[%emt 0:00:02]} (31. Qxe7 $142 Rxe7 32. g4 Bxb2 33. Rc6) 31... Bg6 {[%emt 0:00:02][%cal Oe7e1] [#] Strongly threatening ...Qe1+!} 32. b3 {[%emt 0:00:02]} Qe5 {[%emt 0:00:02]} 33. Qf3 {[%emt 0:00:01]} Qb2 {[%emt 0:00:10]} 34. Rc7 {[%emt 0:00:02]} Rf8 {[%emt 0:00:17]} 35. h4 {[%emt 0:00:03]} Qa1+ {[%emt 0:00:00]} 36. Kh2 {[%emt 0:00:01]} Qe5+ 37. g3 Bh5 {[%emt 0:00:05]} 38. Qd3+ {[%emt 0:00:03]} Bg6 {[%emt 0:00:01]} 39. Qf3 {[%emt 0:00:01]} Qf6 {[%emt 0:00:03]} 40. Qe3 {[%emt 0:00:03]} Qd8 {[%emt 0:00:03]} 41. Ra7 {[%emt 0:00:02]} Qf6 $2 {[%emt 0:00:02]} (41... Qa5 $19 42. Bb7 b4) 42. Rxa6 $2 {[%emt 0:00:02][%mdl 8192]} (42. Rc7 $1 $11 a5 43. Kg2) 42... Qe5 {[%emt 0:00:03]} 43. Qf3 {[%emt 0:00:01]} (43. Qxe5 {was the only defense.} dxe5 44. Rb6) 43... Rc8 {[%emt 0:00:05][%cal Bf8c8,Bc8c3,Bc3d3][%mdl 32] And now ...Rc2 would win.} 44. Ra7 {[%emt 0:00:02]} (44. Rc6 $142 Rxc6 45. Bxc6) 44... Rc3 {[%emt 0:00:02]} 45. Qd1 {[%emt 0:00:02]} Rd3 {[%emt 0:00:02] Weighted Error Value: White=1.07/Black=0.52} 0-1

[Event "Susha Chess Blitz Women 2022"]
[Site "Shusha"]
[Date "2022.09.24"]
[Round "4"]
[White "Efroimski, Marsel"]
[Black "Beydullayeva, Govhar"]
[Result "0-1"]
[ECO "B23"]
[WhiteElo "2462"]
[BlackElo "2346"]
[Annotator "TA"]
[PlyCount "50"]
[EventDate "2022.09.24"]
[EventType "tourn"]
[EventCountry "AZE"]
[SourceTitle "playchess.com"]
[Source "ChessBase"]
[SourceQuality "1"]
[TimeControl "180+2"]

{[%evp 9,50,0,3,9,11,0,12,0,0,-16,-16,-80,-60,-131,-126,-150,-129,-175,-128,-355,-314,-335,-305,-484,-450,-1103,-1089,-1061,-920,-909,-906,-886,-886,-1663,-1682,-2829,-1855,-29987,-29988,-29988,-29986,-29997,-29998]} 1. e4 {[%emt 0:00:01]} c5 {[%emt 0:00:00]} 2. Nc3 {[%emt 0:00:02]} d6 {[%emt 0:00:01]} 3. d4 {[%emt 0:00:01]} cxd4 {[%emt 0:00:01]} 4. Qxd4 {[%emt 0:00:01]} Nc6 {[%emt 0:00:01]} 5. Qd2 {[%emt 0:00:01]} g6 {[%emt 0:00:07]} 6. b3 {[%emt 0:00:00] B23: Closed Sicilian: Lines without g3.} Bh6 {[%emt 0:00:11]} 7. f4 {[%emt 0:00:01]} Nf6 {[%emt 0:00:03]} 8. Bb2 {[%emt 0:00:01] The position is equal.} O-O {[%emt 0:00:03]} 9. O-O-O {[%emt 0:00:02]} a5 {[%emt 0:00:01][%cal Oa5a4] [#]} 10. Nf3 $146 {[%emt 0:00:17] [#]} (10. a4 $11 {keeps the balance.}) ({Predecessor:} 10. a4 Nb4 11. Nf3 Bg4 12. Kb1 Rc8 13. Bc4 Qb6 14. h3 Bxf3 15. gxf3 Nh5 16. Ne2 Rxc4 17. bxc4 {0-1 (55) Shirov,A (2662)-Cheparinov,I (2667) Tornelo INT 2021}) 10... a4 $1 $17 {[%emt 0:00:05]} 11. h4 {[%emt 0:00:33]} ({White should try} 11. g3 $15) 11... axb3 {[%emt 0:00:10]} 12. axb3 {[%emt 0:00:03]} Qa5 {[%emt 0:00:32]} 13. Ng5 {[%emt 0:00:14]} (13. h5 $17 {is a better defense.} Nxh5 14. Nd5) 13... Bg7 {[%emt 0:00:17]} ({Black should play} 13... Nb4 $19 {...Bg7 is the strong threat.} 14. Bc4 Bg4) 14. Qe2 $2 {[%emt 0:01:26]} (14. Nd5 $17) 14... h6 {[%emt 0:00:16]} 15. e5 {[%emt 0:00:20]} dxe5 {[%emt 0:00:15]} ({Don't go for} 15... hxg5 $2 16. exf6 Bxf6 17. Na4 Bxb2+ 18. Kxb2 gxf4 19. c3) 16. Nge4 {[%emt 0:00:03]} (16. fxe5 {is the only way for White.} Nh5 17. Nge4) 16... exf4 {[%emt 0:00:10] [#] And now ...Nxe4 would win.} 17. Nb1 {[%emt 0:00:15]} (17. Nxf6+ $142 Bxf6 18. Na4) 17... Nxe4 $19 {[%emt 0:00:22]} 18. Bxg7 {[%emt 0:00:01]} Kxg7 {[%emt 0:00:01]} 19. Qxe4 {[%emt 0:00:02]} Bf5 {[%emt 0:00:01]} 20. Qxf4 {[%emt 0:00:01]} Nb4 {[%emt 0:00:05]} 21. Qd4+ {[%emt 0:00:01]} e5 {[%emt 0:00:02]} 22. Qd2 {[%emt 0:00:04]} Bxc2 {[%emt 0:00:17] ( -> ...Rfc8)} 23. h5 {[%emt 0:00:00]} Bxb1 {[%emt 0:00:17] Black mates.} 24. Qb2 {[%emt 0:00:06]} Bf5 {[%emt 0:00:14]} 25. Bc4 {[%emt 0:00:06]} Na2+ {[%emt 0:00:03] White did not feel at home in the position after the opening.  Weighted Error Value: White=1.47/Black=0.33} 0-1

[Event "Susha Chess Blitz Women 2022"]
[Site "Shusha"]
[Date "2022.09.24"]
[Round "4"]
[White "Arabidze, Meri"]
[Black "Mammadova, Gulnar"]
[Result "1-0"]
[ECO "A40"]
[WhiteElo "2422"]
[BlackElo "2382"]
[Annotator "TA"]
[PlyCount "145"]
[EventDate "2022.09.24"]
[EventType "tourn"]
[EventCountry "AZE"]
[SourceTitle "playchess.com"]
[Source "ChessBase"]
[SourceQuality "1"]
[TimeControl "180+2"]

{[%evp 13,145,44,41,16,27,24,39,40,60,48,51,52,70,42,51,51,49,54,83,110,105,72,93,18,76,77,68,60,89,12,2,4,6,0,0,0,0,0,133,88,97,83,115,127,117,102,113,43,27,27,29,25,20,33,100,63,56,8,7,7,8,0,0,0,0,-70,-70,-215,-214,-205,251,172,257,251,251,251,243,237,216,81,81,81,5765,5662,4129,335,320,81,81,77,77,77,1356,987,438,77,431,431,2552,2025,1469,431,424,74,74,74,74,74,77,74,77,77,77,77,77,77,77,77,81,81,81,81,29971,29978,29977,29979,29988,89,89,81,81,0,29996,29997]} 1. d4 {[%emt 0:00:01]} g6 {[%emt 0:00:01]} 2. c4 {[%emt 0:00:02]} Bg7 {[%emt 0:00:01]} 3. Nf3 {[%emt 0:00:02]} d6 {[%emt 0:00:01]} 4. g3 {[%emt 0:00:01]} Nd7 {[%emt 0:00:03]} 5. Bg2 {[%emt 0:00:01]} e5 {[%emt 0:00:02]} 6. O-O {[%emt 0:00:02]} Ne7 {[%emt 0:00:02]} 7. Nc3 {[%emt 0:00:08]} O-O {[%emt 0:00:11]} 8. h3 {[%emt 0:00:14] A41: 1 d4 d6: Tartakower System and Modern Defence.} exd4 {[%emt 0:00:26]} 9. Nxd4 {[%emt 0:00:01]} Nb6 {[%emt 0:00:01]} 10. Qd3 {[%emt 0:00:11] White is slightly better.} Nf5 {[%emt 0:00:11] [#]} 11. Nxf5 $146 {[%emt 0:00:05]} ({Predecessor:} 11. Nf3 Be6 12. Nd5 c6 13. Bg5 Qd7 14. Nxb6 axb6 15. Qc2 Nd4 16. Nxd4 Bxd4 17. Kh2 {0-1 (30) Kovacs,G (2385)-Jovanovic,Z (2389) Szombathely 2002}) 11... Bxf5 {[%emt 0:00:01]} 12. e4 {[%emt 0:00:01]} Be6 {[%emt 0:00:02]} 13. b3 {[%emt 0:00:09]} Qd7 {[%emt 0:00:06]} 14. Kh2 {[%emt 0:00:04]} f5 {[%emt 0:00:25]} 15. exf5 {[%emt 0:00:01]} Bxf5 {[%emt 0:00:01]} 16. Qd2 {[%emt 0:00:00]} a5 {[%emt 0:00:36]} 17. Bb2 {[%emt 0:00:08]} Rae8 {[%emt 0:00:10]} 18. Nd5 {[%emt 0:00:09]} (18. Rae1 $16) 18... Nxd5 {[%emt 0:00:10]} (18... Bxb2 $11 {remains equal.} 19. Qxb2 Nxd5 20. Bxd5+ Be6) 19. Bxg7 $16 {[%emt 0:00:10]} (19. Qxd5+ Be6 20. Qd2 Bxb2 21. Qxb2 a4 $11) 19... Kxg7 {[%emt 0:00:07]} 20. cxd5 {[%emt 0:00:17]} Qf7 {[%emt 0:00:13]} 21. Rac1 {[%emt 0:00:36]} ({Don't play} 21. g4 $6 Be4 $11) (21. Qxa5 $16 Be4 22. Rac1 Bxg2 23. Kxg2) 21... b6 $1 $11 {[%emt 0:00:01]} 22. Qc3+ {[%emt 0:00:07]} Kg8 {[%emt 0:00:12]} 23. Qxc7 {[%emt 0:00:01]} Qxc7 {[%emt 0:00:03]} 24. Rxc7 {[%emt 0:00:00]} Bd3 {[%emt 0:00:01]} 25. Rd1 {[%emt 0:00:11]} Be2 {[%emt 0:00:02]} (25... Rxf2 $11 26. Kg1 (26. Rxd3 Ree2 $17) 26... Ree2) 26. Re1 {[%emt 0:00:11]} Rxf2 {[%emt 0:00:04]} 27. Rc2 {[%emt 0:00:19] Hoping for Kg1.} Kg7 {[%emt 0:00:29][%cal Oe2d3]} 28. Kg1 {[%emt 0:00:03]} Bd3 {[%emt 0:00:03][%csl LRc2,LRe1] White must now prevent ...Rxg2+.} 29. Kxf2 {[%emt 0:00:17]} Rf8+ {[%emt 0:00:03]} 30. Kg1 {[%emt 0:00:08]} ({Better is} 30. Ke3 $16 Bxc2 31. Rc1) 30... Bxc2 $14 {[%emt 0:00:01][%mdl 4096] Endgame KRB-KRB} 31. Rc1 {[%emt 0:00:03]} Bd3 {[%emt 0:00:05]} 32. Rc6 {[%emt 0:00:01][%csl LRb6,LRd6]} b5 {[%emt 0:00:03]} 33. Rxd6 {[%emt 0:00:01]} a4 {[%emt 0:00:01]} (33... b4 $1 $14) 34. bxa4 {[%emt 0:00:11]} bxa4 {[%emt 0:00:00]} 35. a3 {[%emt 0:00:02]} (35. g4 $14) 35... Rb8 $11 {[%emt 0:00:01]} 36. Rd7+ {[%emt 0:00:02]} Kf6 {[%emt 0:00:06]} 37. Rxh7 {[%emt 0:00:07]} Rb1+ $1 {[%emt 0:00:06]} 38. Kf2 {[%emt 0:00:06] And now g4 would win.} Rb2+ $1 {[%emt 0:00:01]} 39. Kf3 {[%emt 0:00:02]} (39. Ke3 $11 Rxg2 40. Kxd3 Rxg3+ 41. Ke4 Rxa3 42. h4) 39... Bc4 $1 $15 {[%emt 0:00:03][%mdl 1024] Black has compensation.} 40. d6 {[%emt 0:00:04]} ({White must play} 40. Rd7 $15) 40... Bd5+ $19 {[%emt 0:00:00][%mdl 64] Skewer, Deflection} 41. Ke3 {[%emt 0:00:02]} Be6 {[%emt 0:00:06][%mdl 8192]} (41... Rxg2 $2 42. d7 Ke5 43. d8=Q $18) (41... Bxg2 $19 42. d7 Rb8) 42. d7 {[%emt 0:00:01]} Rb3+ {[%emt 0:00:01]} (42... Bxd7 $142 43. Rxd7 Rxg2) 43. Kd4 {[%emt 0:00:01]} Bxd7 {[%emt 0:00:03]} 44. Rxd7 {[%emt 0:00:01] Strongly threatening Rd6+.} Rxg3 $18 {[%emt 0:00:01] KRB-KR} 45. Bf1 {[%emt 0:00:01] Bd3 is the strong threat.} Rxa3 {[%emt 0:00:01]} 46. Bd3 {[%emt 0:00:02]} (46. Ke4 $18) 46... Ra1 $16 {[%emt 0:00:03]} 47. Rd6+ {[%emt 0:00:00]} Kg5 $2 {[%emt 0:00:01][%mdl 8192]} (47... Ke7 $16 48. Rxg6 a3) 48. Rxg6+ $18 {[%emt 0:00:02]} Kh4 {[%emt 0:00:00]} 49. Rh6+ $2 {[%emt 0:00:01]} (49. Ke4 {White wants to mate with Kf4.} Ra2 50. Kf3) 49... Kg5 {[%emt 0:00:01]} 50. Rh7 {[%emt 0:00:03]} (50. Re6 $18 {is more deadly.}) 50... a3 $16 {[%emt 0:00:01]} 51. h4+ {[%emt 0:00:02][%cal Bh3h4,Bh4h5][%mdl 32]} Kg4 {[%emt 0:00:01]} 52. Be2+ {[%emt 0:00:01]} Kf4 $2 {[%emt 0:00:02][%mdl 8192]} (52... Kg3 $16) 53. Ra7 $1 $18 {[%emt 0:00:06]} Re1 {[%emt 0:00:04]} 54. Bd3 $2 {[%emt 0:00:03]} (54. Kd3 $1 $18) 54... Ra1 {[%emt 0:00:02][%mdl 8192]} (54... Rh1 $16 {is more resistant.}) 55. h5 {[%emt 0:00:03] Intending h6 and mate.} Kg5 {[%emt 0:00:04]} (55... Rh1 $142 56. Bg6 Kg5 57. Ra5+ Kf6 58. Rxa3 Rh2 59. Ra6+ Kg5) 56. Ra5+ {[%emt 0:00:00]} Kh6 {[%emt 0:00:01]} 57. Kc3 {[%emt 0:00:05]} (57. Ke3 $142 {White threatens Ra6+ and mate.} a2 58. Be2) 57... Rh1 {[%emt 0:00:02]} 58. Rxa3 $2 {[%emt 0:00:01]} (58. Be2 $18 {and White stays clearly on top.}) 58... Rxh5 {[%emt 0:00:01]} 59. Ra6+ {[%emt 0:00:01]} Kg5 {[%emt 0:00:02]} 60. Kd4 {[%emt 0:00:01]} Rh1 {[%emt 0:00:02]} 61. Be4 {[%emt 0:00:01]} Rc1 {[%emt 0:00:06]} 62. Ke5 {[%emt 0:00:02]} Rc5+ {[%emt 0:00:01]} 63. Bd5 {[%emt 0:00:00]} Rb5 {[%emt 0:00:01]} 64. Ra1 {[%emt 0:00:02]} Kg4 {[%emt 0:00:03]} 65. Rg1+ {[%emt 0:00:01]} Kh3 {[%emt 0:00:01]} 66. Ke4 {[%emt 0:00:05]} Kh2 {[%emt 0:00:03]} 67. Rg8 {[%emt 0:00:01]} Rb1 $2 {[%emt 0:00:03][%mdl 8192] [#]} (67... Kh3 $16) 68. Kf4 $1 {[%emt 0:00:03]} Rb4+ {[%emt 0:00:03]} 69. Be4 {[%emt 0:00:00]} Rb6 {[%emt 0:00:02] [#]} 70. Rh8+ $2 {[%emt 0:00:03]} (70. Rg2+ $1 {mates} Kh3 71. Rd2 Rf6+ 72. Bf5+ Rxf5+ 73. Kxf5 Kg3 74. Ke4 Kg4 75. Rg2+ Kh3 76. Rg5) 70... Kg1 $16 {[%emt 0:00:01]} 71. Ke3 {[%emt 0:00:02][%csl Ge4][%cal Rh8h1]} Rb3+ {[%emt 0:00:02]} 72. Kf4 {[%emt 0:00:02]} ({White should play} 72. Ke2 $16 {[%csl Ge4][%cal Rh8h1]} Rb2+ 73. Ke3 (73. Ke1 Re2+ 74. Kxe2 $11) 73... Re2+ 74. Kd3) 72... Rh3 $2 {[%emt 0:00:03][%mdl 8192] Prevents Rh1+.} 73. Rxh3 {[%emt 0:00:02] Weighted Error Value: White=0.68/Black=0.37} 1-0

[Event "Susha Chess Blitz Women 2022"]
[Site "Shusha"]
[Date "2022.09.24"]
[Round "4"]
[White "Fataliyeva, Ulviyya"]
[Black "Zawadzka, Jolanta"]
[Result "1-0"]
[ECO "D02"]
[WhiteElo "2408"]
[BlackElo "2401"]
[Annotator "TA"]
[PlyCount "61"]
[EventDate "2022.09.24"]
[EventType "tourn"]
[EventCountry "AZE"]
[SourceTitle "playchess.com"]
[Source "ChessBase"]
[SourceQuality "1"]
[TimeControl "180+2"]

{[%evp 9,61,10,20,20,23,14,13,18,24,0,27,15,76,78,83,47,77,87,131,125,127,109,294,259,297,306,303,296,275,304,295,287,433,421,743,741,740,732,728,717,700,527,527,510,643,498,725,588,523,530,525,510,2387,2162]} 1. d4 {[%emt 0:00:02]} d5 {[%emt 0:00:01]} 2. Nf3 {[%emt 0:00:06]} Nf6 {[%emt 0:00:01]} 3. g3 {[%emt 0:00:11]} b5 {[%emt 0:00:04]} 4. Bg2 {[%emt 0:00:01]} e6 {[%emt 0:00:02]} 5. O-O {[%emt 0:00:02]} Be7 {[%emt 0:00:01]} 6. a4 {[%emt 0:00:10] A46: 1 d4 Nf6 2 Nf3 e6: Torre, London and Colle Systems.} b4 {[%emt 0:00:03]} 7. c4 {[%emt 0:00:00]} bxc3 {[%emt 0:00:01]} 8. bxc3 {[%emt 0:00:02][%cal Oc3c4] The position is equal.} Ba6 {[%emt 0:00:09]} 9. Ba3 {[%emt 0:00:03]} O-O {[%emt 0:00:03]} 10. Ne5 {[%emt 0:00:04]} c5 {[%emt 0:00:12] [#]} (10... Nbd7 $2 11. Nc6 Qe8 12. Bxe7 $18) (10... Nfd7 $11) 11. c4 $1 $16 {[%emt 0:00:41] [#] White is more active.} (11. Bxc5 Bxc5 12. dxc5 Qc7 $15) (11. dxc5 Qc7 12. Nd3 Rc8 $11) 11... Qc7 $146 {[%emt 0:00:18]} ({Predecessor:} 11... cxd4 12. Qxd4 Bb7 13. Nc3 Bxa3 14. Rxa3 Qe7 15. Rb3 Nc6 16. Nxc6 Bxc6 17. cxd5 exd5 18. Nxd5 Nxd5 19. Bxd5 Bxd5 20. Qxd5 Qxe2 {0-1 (59) Voiteanu,C (2123)-Nutakki,P Chess.com INT 2021}) 12. cxd5 {[%emt 0:00:11]} exd5 {[%emt 0:00:04]} 13. Nc3 {[%emt 0:00:09]} Rd8 {[%emt 0:00:19]} 14. Nb5 {[%emt 0:00:26]} Bxb5 {[%emt 0:00:42]} 15. axb5 {[%emt 0:00:01]} cxd4 $2 {[%emt 0:00:03] This costs Black the game.} (15... a6 $16 {was called for.}) 16. Bxe7 $18 {[%emt 0:00:14]} ({Don't play} 16. Qxd4 $6 Bxa3 17. Rxa3 Qb7 $18) 16... Qxe7 {[%emt 0:00:04]} 17. Qxd4 {[%emt 0:00:01]} Qb7 {[%emt 0:00:25]} 18. e4 {[%emt 0:00:11][%cal Be2e4,Be4d5][%mdl 32] exd5 is the strong threat.} Qxb5 {[%emt 0:00:37]} 19. Rfb1 {[%emt 0:00:10][%mdl 64] [#] Deflection} (19. Rxa7 Rxa7 20. Qxa7 Qe8 $11) 19... Qe8 {[%emt 0:00:07]} 20. exd5 {[%emt 0:00:01] Threatens to win with d6.} Nbd7 {[%emt 0:00:11]} (20... a5 $142 21. Rb7 Nfd7) 21. Nc6 {[%emt 0:00:04] White is clearly winning.} Rdc8 {[%emt 0:00:10]} (21... Nf8 $142 22. Nxd8 Rxd8 23. Rxa7 h5) 22. Re1 {[%emt 0:00:01]} Qf8 {[%emt 0:00:02]} 23. Ne7+ {[%emt 0:00:01]} Kh8 {[%emt 0:00:01]} 24. Nxc8 {[%emt 0:00:01]} Rxc8 {[%emt 0:00:02]} 25. Rxa7 {[%emt 0:00:01] Black must now prevent d6.} Qd6 {[%emt 0:00:04]} 26. Bh3 {[%emt 0:00:04] And now Bxd7 would win.} h6 {[%emt 0:00:04]} 27. Qa4 {[%emt 0:00:26]} Rd8 {[%emt 0:00:02]} (27... Nb6 $142 28. Qb5 Rc7) 28. Qc6 {[%emt 0:00:04]} Qb4 {[%emt 0:00:02]} 29. Rea1 {[%emt 0:00:08][%cal Rh3d7]} ({Not} 29. Bxd7 Qxe1+ 30. Kg2 Qe4+ 31. Kg1 (31. Kh3 $2 Qf3 $19) 31... Rxd7 32. Qc8+ (32. Rxd7 Qe1+ 33. Kg2 Qe4+ 34. Kf1 Qh1+ 35. Ke2 Qe4+ 36. Kf1 Qh1+ 37. Ke2 Qe4+ 38. Kf1 $11) 32... Kh7 33. Rxd7 Qe1+ 34. Kg2 Qe4+ 35. Kf1 Nxd7 36. Qxd7 Qh1+ 37. Ke2 Qe4+ 38. Kd1 Qd3+ 39. Ke1 Qe4+ 40. Kf1 Qh1+ 41. Ke2 Qe4+ 42. Kf1 $11) 29... Ne5 {[%emt 0:00:02]} 30. Qc7 {[%emt 0:00:06][%csl LRd8,LRe5]} Rf8 {[%emt 0:00:01]} (30... Nf3+ $142 31. Kh1 Rg8) 31. Qxe5 {[%emt 0:00:02] Weighted Error Value: White=0.32/Black=0.40} 1-0

[Event "Susha Chess Blitz Women 2022"]
[Site "Shusha"]
[Date "2022.09.24"]
[Round "5"]
[White "Dzagnidze, Nana"]
[Black "Mammadova, Gulnar"]
[Result "1-0"]
[ECO "A10"]
[WhiteElo "2526"]
[BlackElo "2382"]
[Annotator "TA"]
[PlyCount "75"]
[EventDate "2022.09.24"]
[EventType "tourn"]
[EventCountry "AZE"]
[SourceTitle "playchess.com"]
[Source "ChessBase"]
[SourceQuality "1"]
[TimeControl "180+2"]

{[%evp 16,75,29,33,45,48,54,57,60,28,47,30,59,52,71,72,83,96,106,47,95,98,74,43,39,54,145,149,218,163,157,114,191,189,329,326,309,320,306,325,303,319,382,378,446,429,450,271,395,394,1327,1283,7402,6821,6179,6195,5293,5473,4994,4906,1709,1406]} 1. c4 {[%emt 0:00:01]} g6 {[%emt 0:00:02]} 2. Nc3 {[%emt 0:00:03]} Bg7 {[%emt 0:00:00]} 3. Nf3 {[%emt 0:00:07]} d6 {[%emt 0:00:02]} 4. d4 {[%emt 0:00:05]} Nd7 {[%emt 0:00:02]} 5. g3 {[%emt 0:00:03]} e5 {[%emt 0:00:01]} 6. Bg2 {[%emt 0:00:09]} Ne7 {[%emt 0:00:01]} 7. O-O {[%emt 0:00:10]} O-O {[%emt 0:00:02]} 8. e3 {[%emt 0:00:53]} exd4 {[%emt 0:00:03]} 9. Nxd4 {[%emt 0:00:04]} Nb6 {[%emt 0:00:03] A21: English Opening: 1...e5 2 Nc3.} 10. b3 {[%emt 0:00:03]} c5 {[%emt 0:00:21]} 11. Nde2 {[%emt 0:00:05]} d5 $1 {[%emt 0:00:06] White is slightly better.} 12. cxd5 {[%emt 0:00:03]} Nexd5 {[%emt 0:00:08]} 13. Bb2 {[%emt 0:00:01]} Be6 {[%emt 0:00:11] [#]} 14. Qb1 $146 {[%emt 0:00:13]} ({Predecessor:} 14. Qd2 Nxc3 15. Bxc3 Qxd2 16. Bxd2 Bxa1 17. Rxa1 Bd5 18. e4 Bc6 19. Rc1 Nd7 20. Nc3 {0-1 (69) Kasperski,M (1788)-Choroszej,A (1984) Warsaw 2017}) 14... Nxc3 {[%emt 0:00:38]} 15. Bxc3 {[%emt 0:00:05]} Qe7 {[%emt 0:00:20]} 16. Bxg7 {[%emt 0:00:15]} Kxg7 17. Qb2+ ({White should play} 17. Nf4 $16) 17... Kg8 {[%emt 0:00:03]} (17... f6 $14) 18. Nf4 $16 {[%emt 0:00:03]} Rad8 {[%emt 0:00:05]} 19. Nxe6 {[%emt 0:00:03] White is more active.} fxe6 {[%emt 0:00:04]} 20. Rad1 {[%emt 0:00:05]} e5 {[%emt 0:00:13]} (20... Nd5 $14) 21. Qc3 {[%emt 0:00:29]} h5 {[%emt 0:00:24]} (21... Na8 $16 22. f4 Nb6 23. Rxd8 (23. fxe5 Rxf1+ 24. Rxf1 Re8 $16) (23. Qxe5 Qxe5 24. fxe5 Rxf1+ 25. Rxf1 Rd7 $16) 23... Rxd8) 22. h4 {[%emt 0:00:01]} Kh7 {[%emt 0:00:01]} 23. Qc2 {[%emt 0:00:10]} Nc8 {[%emt 0:00:12]} (23... Rc8 $16 24. Be4 Rf6) 24. Be4 $18 {[%emt 0:00:11]} Qf6 {[%emt 0:00:22]} (24... Qg7 $142 25. Qxc5 Kh6) 25. Rxd8 {[%emt 0:00:05]} (25. Qxc5 Rxd1 26. Rxd1 Qxf2+ 27. Kh1 Rf7 $16) ({Resist} 25. Bxb7 Nd6 $18) 25... Rxd8 {[%emt 0:00:01]} 26. Bxb7 {[%emt 0:00:09]} ({Less strong is} 26. Qxc5 b6 27. Qc7+ Kh6 $18) 26... Nd6 {[%emt 0:00:01]} 27. Bg2 {[%emt 0:00:03]} ({Weaker is} 27. Qxc5 Nxb7 28. Qxa7 Rd7 $15) 27... Rc8 {[%emt 0:00:03]} 28. Rd1 {[%emt 0:00:02][%cal Bf1d1,Bd1d5,Bd5d6][%mdl 32]} Rc7 {[%emt 0:00:13]} 29. Rd5 {[%emt 0:00:08]} c4 {[%emt 0:00:01]} 30. bxc4 {[%emt 0:00:02]} Nxc4 {[%emt 0:00:02]} 31. Qd3 {[%emt 0:00:04]} Nb6 {[%emt 0:00:03]} (31... Kh6 $142 32. Rd7 Nb2) 32. Rd6 {[%emt 0:00:03]} Qf5 {[%emt 0:00:13] [#]} (32... Rc1+ 33. Kh2 Qf5) 33. Be4 {[%emt 0:00:03][%cal Bg2e4,Be4g6,Bg6h5,Bh5d1][%mdl 32] White is clearly winning.} Qh3 {[%emt 0:00:01]} 34. Bxg6+ {[%emt 0:00:04]} Kg7 {[%emt 0:00:00]} 35. Bxh5 {[%emt 0:00:01]} Rc1+ {[%emt 0:00:06]} 36. Bd1 {[%emt 0:00:01] [#] Intending Qg6+ and mate.} Qg4 {[%emt 0:00:01] Against Qg6+} 37. Kg2 {[%emt 0:00:01]} Rxd1 {[%emt 0:00:00]} 38. Qxd1 {Weighted Error Value: White=0.20 (precise) /Black=0.42} 1-0